bitfinex/quotes_ETHUSD_20251126
["timestamp","ask_amount","ask_price","bid_price","bid_amount"]
[1764143539464,5.5812371,2944.1,2944.0,0.9368]
[1764143540455,4.93999339,2944.1,2944.0,0.001]
[1764143540680,5.03973048,2944.1,2944.0,0.001]
[1764143542969,4.93999339,2944.1,2944.0,0.001]
[1764143543281,4.66429339,2944.1,2944.0,0.001]
[1764143543883,4.93989339,2944.1,2944.0,0.001]
[1764143544258,4.66429339,2944.1,2944.0,0.001]
[1764143544562,4.66429339,2944.1,2944.0,0.9368]
[1764143545074,4.66429339,2944.1,2944.0,0.4519]
[1764143545978,4.93579339,2944.1,2944.0,0.001]
[1764143546892,4.66429339,2944.1,2944.0,0.001]
[1764143547894,4.44929339,2944.1,2944.0,0.001]
[1764143548099,4.66429339,2944.1,2944.0,0.001]
[1764143548909,4.93579339,2944.1,2944.0,0.001]
[1764143550415,4.66429339,2944.1,2944.0,0.001]
[1764143550701,4.93579339,2944.1,2944.0,0.001]
[1764143550871,4.66429339,2944.1,2944.0,0.001]
[1764143552912,4.44929339,2944.1,2944.0,0.001]
[1764143553081,4.66429339,2944.1,2944.0,0.001]
[1764143553406,4.93579339,2944.1,2944.0,0.001]
[1764143554211,5.03553048,2944.1,2944.0,0.001]
[1764143555477,4.76403048,2944.1,2944.0,0.9368]
[1764143555683,5.36637403,2944.1,2944.0,0.9368]
[1764143555905,5.58137403,2944.1,2944.0,0.9368]
[1764143557208,1.96975028,2944.1,2944.0,0.9368]
[1764143557408,4.66429339,2944.1,2944.0,0.9368]
[1764143557602,5.58137403,2944.1,2944.0,0.4519]
[1764143557785,4.66429339,2944.1,2944.0,0.4519]
[1764143558492,4.66429339,2944.1,2944.0,0.001]
[1764143558493,5.58137403,2944.1,2944.0,0.001]
[1764143558692,5.58137403,2944.1,2944.0,0.4519]
[1764143558894,4.66429339,2944.1,2944.0,0.4519]
[1764143559093,4.66429339,2944.1,2944.0,0.9368]
[1764143559912,4.66429339,2944.1,2944.0,0.4519]
[1764143571633,6.63371512,2944.1,2944.0,0.001]
[1764143571838,7.660344,2944.1,2944.0,0.001]
[1764143572338,6.44222859,2944.1,2944.0,0.001]
[1764143574118,6.16662859,2944.1,2944.0,0.001]
[1764143574518,6.44222859,2944.1,2944.0,0.001]
[1764143575040,6.16662859,2944.1,2944.0,0.001]
[1764143575612,6.44222859,2944.1,2944.0,0.001]
[1764143575814,6.22722859,2944.1,2944.0,0.001]
[1764143576014,6.44222859,2944.1,2944.0,0.001]
[1764143578822,6.22722859,2944.1,2944.0,0.001]
[1764143579143,6.16662859,2944.1,2944.0,0.001]
[1764143579534,5.95162859,2944.1,2944.0,0.001]
[1764143579735,6.16662859,2944.1,2944.0,0.001]
[1764143580245,6.08778142,2944.1,2944.0,0.001]
[1764143580431,6.30278142,2944.1,2944.0,0.001]
[1764143580950,6.57838142,2944.1,2944.0,0.001]
[1764143581268,6.57838142,2944.1,2943.6,0.001]
[1764143581269,0.50524109,2943.7,2943.6,0.001]
[1764143581414,0.413704,2943.4,2942.7,0.001]
[1764143581749,5.91382197,2943.1,2942.7,0.001]
[1764143581927,6.96906038,2943.1,2942.7,0.4722]
[1764143582248,5.35350417,2943.1,2942.7,0.4722]
[1764143582835,8.75128202,2943.1,2942.7,0.4722]
[1764143583041,6.16915146,2943.1,2942.7,0.4722]
[1764143583244,4.66261626,2943.1,2943.0,0.9743]
[1764143584943,4.66261626,2943.1,2943.0,0.4746]
[1764143585143,4.76235335,2943.1,2943.0,0.4746]
[1764143585459,4.76235335,2943.1,2943.0,0.9743]
[1764143585766,4.76235335,2943.1,2943.0,0.4746]
[1764143585971,4.76235335,2943.1,2943.0,0.9743]
[1764143587260,0.53261593,2943.1,2943.0,0.9743]
[1764143587662,3.93039378,2943.1,2943.0,0.9743]
[1764143588878,4.66054441,2943.1,2943.0,0.9743]
[1764143589052,4.44554441,2943.1,2943.0,0.9743]
[1764143589376,3.93039378,2943.1,2943.0,0.9743]
[1764143590047,3.93039378,2943.1,2943.0,0.4746]
[1764143590250,4.03013087,2943.1,2943.0,0.001]
[1764143590452,4.03013087,2943.1,2943.0,0.9743]
[1764143594592,6.68059662,2943.1,2943.0,0.9743]
[1764143595388,7.41087324,2943.1,2943.0,0.9743]
[1764143597184,7.31113615,2943.1,2943.0,0.9743]
[1764143599707,7.31113615,2943.1,2943.0,0.4746]
[1764143601018,7.31113615,2943.1,2943.0,0.9468]
[1764143602997,3.9133583,2943.1,2943.0,0.9468]
[1764143603302,7.31113615,2943.1,2943.0,0.9468]
[1764143603901,7.3110815,2943.1,2943.0,0.9468]
[1764143604098,4.66061575,2943.1,2943.0,0.9468]
[1764143605918,4.66061575,2943.1,2943.0,4.7568]
[1764143608526,4.66061575,2943.1,2943.0,0.4746]
[1764143608710,4.66061575,2943.1,2943.0,0.9468]
[1764143609714,4.44561575,2943.1,2943.0,0.9468]
[1764143609920,4.66061575,2943.1,2943.0,0.9468]
[1764143611225,5.57410221,2943.1,2943.0,0.9468]
[1764143613226,4.66061575,2943.1,2943.0,0.9468]
[1764143613626,4.44561575,2943.1,2943.0,0.9468]
[1764143613830,4.66061575,2943.1,2943.0,0.9468]
[1764143617642,4.44561575,2943.1,2943.0,0.9468]
[1764143617845,4.66061575,2943.1,2943.0,0.9468]
[1764143620552,4.44561575,2943.1,2943.0,0.9468]
[1764143620722,4.66061575,2943.1,2943.0,0.9468]
[1764143620923,4.66061575,2943.1,2943.0,0.4746]
[1764143624028,4.44561575,2943.1,2943.0,0.4746]
[1764143624222,4.66061575,2943.1,2943.0,0.4746]
[1764143624425,4.66061575,2943.1,2943.0,0.9712]
[1764143626461,4.44561575,2943.1,2943.0,0.9712]
[1764143626756,4.66061575,2943.1,2943.0,0.9712]
[1764143627566,4.66061575,2943.1,2943.0,0.4746]
[1764143627754,4.66061575,2943.1,2943.0,0.001]
[1764143628176,4.66061575,2943.1,2943.0,0.457]
[1764143628374,4.66061575,2943.1,2943.0,0.9536]
[1764143631367,4.66061575,2943.1,2943.0,0.457]
[1764143631583,4.66061575,2943.1,2943.0,0.001]
[1764143632032,4.93221575,2943.1,2943.0,0.001]
[1764143634273,4.66061575,2943.1,2943.0,0.001]
[1764143634978,4.93221575,2943.1,2943.0,0.001]
[1764143636399,4.66061575,2943.1,2943.0,0.001]
[1764143638078,4.93631575,2943.1,2943.0,0.001]
[1764143640601,9.93652891,2943.1,2943.0,0.001]
[1764143640777,9.93652891,2943.1,2942.4,0.001]
[1764143640778,1.13109811,2942.6,2942.4,0.001]
[1764143640963,0.405504,2942.4,2942.3,0.001]
[1764143641164,0.09973709,2941.8,2941.3,0.4966]
[1764143641369,2.65046575,2941.5,2941.3,0.4966]
[1764143641570,0.31832768,2941.4,2941.3,0.4966]
[1764143642003,0.31832768,2941.4,2941.3,0.9526]
[1764143642004,0.53332768,2941.4,2941.3,0.9526]
[1764143642299,0.215,2941.4,2941.3,0.9526]
[1764143644209,6.04990911,2941.7,2941.3,0.9526]
[1764143644415,0.215,2941.4,2941.1,3.40106944]
[1764143644609,2.65046575,2941.7,2941.1,3.40106944]
[1764143644810,6.45490912,2942.1,2941.6,0.4885]
[1764143645014,1.26220303,2942.0,2941.2,0.4878]
[1764143645213,0.31694724,2941.9,2941.2,0.4878]
[1764143645420,0.31694724,2941.9,2941.3,3.3998572]
[1764143645622,0.215,2941.8,2941.3,3.3998572]
[1764143645811,0.215,2941.8,2941.4,0.4878]
[1764143646218,0.215,2941.8,2941.7,0.4885]
[1764143646693,0.215,2941.8,2941.7,0.9763]
[1764143650326,0.215,2941.8,2941.7,0.4885]
[1764143650546,0.215,2941.8,2941.5,0.4878]
[1764143650728,0.215,2941.8,2941.7,0.4885]
[1764143651229,0.215,2941.8,2941.6,0.001]
[1764143651230,10.64519292,2941.8,2941.6,0.001]
[1764143651550,0.82460956,2941.7,2941.6,0.001]
[1764143651711,1.10030956,2941.7,2941.6,0.001]
[1764143651911,1.96590014,2941.7,2941.6,0.001]
[1764143652345,5.36529504,2941.7,2941.6,0.001]
[1764143652644,6.09088915,2941.7,2941.6,0.001]
[1764143653719,5.71265206,2941.7,2941.6,0.001]
[1764143653924,0.91705742,2942.3,2941.6,0.9619]
[1764143654239,0.96157214,2942.1,2941.7,0.4509]
[1764143654438,3.3991638,2941.9,2941.7,0.9233]
[1764143654752,0.215,2941.8,2941.6,0.001]
[1764143655322,0.215,2941.8,2941.7,0.4509]
[1764143655629,0.215,2941.8,2941.7,0.9233]
[1764143656707,3.39904826,2942.0,2941.7,0.9233]
[1764143656948,0.215,2941.9,2941.8,0.4724]
[1764143657418,0.215,2941.9,2941.8,0.9233]
[1764143662860,3.39893273,2942.1,2941.8,0.9233]
[1764143663164,0.53127037,2942.0,2941.9,0.4509]
[1764143663937,3.93031863,2942.0,2941.9,0.4509]
[1764143665369,4.65973982,2942.0,2941.9,0.4509]
[1764143665573,4.65973982,2942.0,2941.9,0.9233]
[1764143665574,1.26069156,2942.0,2941.9,0.9233]
[1764143665876,0.53127037,2942.0,2941.9,0.9233]
[1764143666242,4.66008067,2942.0,2941.9,0.9233]
[1764143666544,4.66008067,2942.0,2941.9,0.4509]
[1764143669943,10.9208913,2942.0,2941.8,0.001]
[1764143670140,1.04873241,2941.9,2941.8,0.001]
[1764143670646,5.2288373,2941.9,2941.8,0.001]
[1764143670847,6.14389472,2941.9,2941.8,0.001]
[1764143671944,5.86819472,2941.9,2941.8,0.001]
[1764143672340,5.86819472,2941.9,2941.8,0.9243]
[1764143672341,5.76575763,2941.9,2941.8,0.9243]
[1764143672570,8.62342,2941.9,2941.8,0.001]
[1764143672740,8.02309967,2941.9,2941.8,0.001]
[1764143672969,9.04501115,2941.9,2941.8,0.001]
[1764143675366,5.87261169,2941.9,2941.8,0.001]
[1764143675570,5.98022184,2941.9,2941.8,0.4519]
[1764143675979,6.25182184,2941.9,2941.8,0.001]
[1764143676470,6.35155893,2941.9,2941.8,0.001]
[1764143676866,6.07995893,2941.9,2941.8,0.4519]
[1764143677297,6.07995893,2941.9,2941.8,0.001]
[1764143677875,6.07995893,2941.9,2941.8,0.4519]
[1764143679971,5.98152275,2941.9,2941.8,0.4519]
[1764143680722,5.98152275,2941.9,2941.8,0.001]
[1764143681222,1.96185495,2941.9,2941.8,0.4519]
[1764143681421,4.66149712,2941.9,2941.8,0.4519]
[1764143682189,4.66149712,2941.9,2941.8,0.9243]
[1764143685032,1.04733332,2941.9,2941.8,0.9243]
[1764143685212,1.26233332,2941.9,2941.8,0.9243]
[1764143687513,4.66149712,2941.9,2941.8,0.9243]
[1764143687714,4.66149712,2941.9,2941.8,0.4519]
[1764143687920,4.66149712,2941.9,2941.8,0.001]
[1764143688328,7.92466349,2941.9,2941.8,0.001]
[1764143689221,5.06700112,2941.9,2941.8,0.4774]
[1764143689425,5.06700112,2941.9,2941.8,0.9373]
[1764143690036,4.66149712,2941.9,2941.8,0.9373]
[1764143693120,1.04733332,2941.9,2941.8,0.9373]
[1764143693330,4.66149712,2941.9,2941.8,0.9373]
[1764143694640,4.66149712,2941.9,2941.8,0.4774]
[1764143695238,4.66149712,2941.9,2941.8,0.001]
[1764143695239,8.30000058,2941.9,2941.8,0.001]
[1764143695438,9.21452221,2941.9,2941.8,0.001]
[1764143698648,8.93892221,2941.9,2941.8,0.001]
[1764143699348,8.93914398,2941.9,2941.8,0.001]
[1764143700243,8.30022235,2941.9,2941.8,0.001]
[1764143700448,14.19350404,2941.9,2941.8,0.001]
[1764143700746,12.36339346,2941.9,2941.8,0.001]
[1764143701125,13.23420331,2941.9,2941.8,0.001]
[1764143701461,14.19352531,2941.9,2941.8,0.001]
[1764143701638,3.90463599,2941.7,2941.6,0.001]
[1764143701844,6.7847413,2941.7,2941.6,0.001]
[1764143702045,7.0604413,2941.7,2941.6,0.001]
[1764143702281,5.95628519,2941.7,2941.6,0.001]
[1764143702431,7.55710959,2941.6,2941.5,0.001]
[1764143702759,9.5487106,2941.6,2941.5,0.001]
[1764143703122,9.2730106,2941.6,2941.5,0.001]
[1764143703328,5.40895266,2941.6,2941.5,0.001]
[1764143703633,0.405504,2941.2,2940.9,0.45145]
[1764143703951,8.97706105,2941.1,2940.9,0.45145]
[1764143704267,1.26255509,2941.0,2940.9,0.45145]
[1764143704464,2.08788629,2941.0,2940.9,0.45145]
[1764143704640,2.08788629,2941.0,2940.9,0.4584]
[1764143705754,5.4880903,2941.0,2940.9,0.4584]
[1764143706740,5.4880903,2941.0,2940.9,0.9124]
[1764143707260,1.9881492,2941.0,2940.9,0.9124]
[1764143707563,0.53279305,2941.0,2940.9,0.9124]
[1764143708472,0.215,2941.0,2940.9,0.9124]
[1764143708967,0.215,2941.0,2940.9,4.31260846]
[1764143710790,0.73114865,2941.3,2940.9,4.31260846]
[1764143710791,0.91432916,2941.7,2940.9,4.31260846]
[1764143710955,1.26325578,2941.6,2941.4,0.1811]
[1764143711154,0.5322779,2941.5,2941.4,0.1811]
[1764143711397,0.215,2941.5,2941.4,0.1811]
[1764143711598,0.215,2941.5,2941.4,0.6395]
[1764143712095,0.215,2941.5,2941.4,1.0935]
[1764143714068,0.73080219,2941.8,2941.4,1.0935]
[1764143714255,0.215,2941.5,2941.4,0.1811]
[1764143714455,0.215,2941.5,2941.4,0.6463]
[1764143714887,0.215,2941.5,2941.4,1.0967]
[1764143715290,0.215,2941.7,2941.4,7.89617373]
[1764143715599,0.215,2941.7,2941.5,0.4504]
[1764143715886,0.215,2941.7,2941.6,0.4652]
[1764143716085,0.215,2941.7,2941.6,0.9156]
[1764143716456,3.6143949,2941.7,2941.6,0.9156]
[1764143717183,0.215,2941.7,2941.6,0.9156]
[1764143717705,0.002,2942.3,2941.6,11.11413141]
[1764143717858,0.002,2942.6,2942.2,2.58606237]
[1764143718084,0.002,2942.6,2942.5,0.4652]
[1764143718487,0.002,2942.6,2942.5,0.9156]
[1764143718685,0.002,2942.6,2942.5,0.4652]
[1764143719224,0.002,2942.6,2942.5,0.9156]
[1764143722085,0.217,2942.6,2942.5,0.9156]
[1764143723993,0.002,2942.6,2942.5,4.31407068]
[1764143724316,0.002,2942.6,2942.5,0.9156]
[1764143725095,0.002,2942.6,2942.5,0.4652]
[1764143725313,0.002,2942.6,2942.2,0.4504]
[1764143732162,0.002,2942.6,2942.2,3.81]
[1764143732359,0.72759411,2942.6,2942.2,3.81]
[1764143732652,1.00779411,2942.6,2942.2,3.81]
[1764143733848,0.72759411,2942.6,2942.2,3.81]
[1764143734049,3.39847068,2942.5,2942.2,4.2604]
[1764143734765,3.39847068,2942.5,2942.3,0.4504]
[1764143735277,4.12596383,2942.6,2942.4,0.4652]
[1764143735426,4.12596383,2942.6,2942.5,0.4652]
[1764143736020,4.12596383,2942.6,2942.2,4.2604]
[1764143736219,4.12596383,2942.6,2942.3,0.4504]
[1764143737621,4.12596383,2942.6,2942.5,0.4652]
[1764143737829,0.002,2942.9,2942.5,3.9877869]
[1764143738073,0.002,2942.9,2942.8,4.58891834]
[1764143738371,0.002,2942.9,2942.8,5.03931834]
[1764143738749,0.002,2942.9,2942.8,5.17546561]
[1764143739837,0.002,2943.2,2942.9,0.72559411]
[1764143740040,0.002,2943.2,2943.1,8.06055886]
[1764143740558,0.002,2943.2,2943.1,8.51095886]
[1764143742160,0.002,2943.3,2943.2,0.72559411]
[1764143742457,0.002,2943.3,2943.2,1.64119411]
[1764143742838,0.002,2943.3,2943.2,1.77730339]
[1764143744274,0.002,2943.6,2943.2,12.47579459]
[1764143744566,0.002,2943.6,2943.5,0.483]
[1764143744970,0.002,2943.6,2943.5,0.9516]
[1764143745774,0.002,2943.9,2943.5,0.9516]
[1764143745926,0.002,2943.9,2943.8,4.51618101]
[1764143746134,0.002,2943.9,2943.8,8.12815091]
[1764143746468,0.002,2943.9,2943.8,8.7328375]
[1764143750076,0.002,2943.9,2943.1,3.56214128]
[1764143750077,0.4588,2943.9,2943.1,3.56214128]
[1764143750244,0.4588,2943.9,2943.3,0.4686]
[1764143750444,0.4588,2943.9,2943.3,1.19419411]
[1764143750775,0.4588,2943.9,2943.5,6.79463224]
[1764143751149,0.4588,2943.9,2943.5,7.26323224]
[1764143751348,0.4568,2943.6,2943.5,3.39731612]
[1764143751864,0.1014,2943.9,2943.5,7.27763224]
[1764143752065,0.5723,2943.9,2943.5,7.27763224]
[1764143755071,0.1014,2943.9,2943.5,7.27763224]
[1764143755299,0.4709,2943.8,2943.5,3.88031612]
[1764143755504,0.4568,2943.6,2943.2,3.3976624]
[1764143755799,0.4568,2943.6,2943.2,6.7953248]
[1764143756001,0.9277,2943.6,2943.2,6.7953248]
[1764143757692,0.9277,2943.6,2943.2,7.2639248]
[1764143760402,0.002,2943.9,2943.5,0.483]
[1764143760970,0.4568,2943.6,2943.2,10.6053248]
[1764143761573,0.4568,2943.6,2943.2,11.0739248]
[1764143761778,0.4568,2943.6,2943.2,10.6053248]
[1764143762004,0.4709,2943.8,2943.3,0.4686]
[1764143762178,0.4709,2943.8,2943.4,6.79486308]
[1764143762789,0.002,2943.9,2943.7,0.48]
[1764143763134,0.002,2943.9,2943.8,0.9473]
[1764143763300,0.002,2943.9,2943.8,0.98126969]
[1764143763894,0.002,2943.9,2943.8,5.5168638]
[1764143764073,0.002,2943.9,2943.8,5.48289411]
[1764143764278,0.002,2943.9,2943.8,8.87986401]
[1764143767011,0.002,2943.9,2943.8,8.41256401]
[1764143767209,0.002,2943.9,2943.8,8.62756401]
[1764143768156,0.002,2943.9,2943.8,9.09486401]
[1764143770348,0.002,2943.9,2943.8,3.8769699]
[1764143770521,1.0439,2943.9,2943.8,3.3969699]
[1764143771044,0.4933,2943.9,2943.8,3.3969699]
[1764143771236,0.4933,2943.9,2943.5,0.001]
[1764143771237,0.4933,2943.9,2943.5,7.52122635]
[1764143771608,1.0439,2943.9,2943.5,7.52122635]
[1764143773255,1.0439,2943.9,2943.5,6.79563224]
[1764143773450,0.5726,2943.9,2943.5,6.79563224]
[1764143773653,0.1842,2943.6,2943.5,3.39831612]
[1764143774653,0.669,2943.6,2943.5,3.39831612]
[1764143774855,0.1842,2943.6,2943.5,3.39831612]
[1764143775155,0.5661,2943.9,2943.5,7.26813224]
[1764143775342,0.0813,2943.9,2943.5,7.26813224]
[1764143775516,0.002,2943.9,2943.5,7.76053224]
[1764143775917,0.4848,2943.8,2943.5,7.26813224]
[1764143776743,0.002,2943.9,2943.5,7.26813224]
[1764143776940,0.002,2943.9,2943.5,7.76053224]
[1764143778285,0.002,2943.9,2943.8,0.4725]
[1764143778639,0.002,2943.9,2943.8,0.9649]
[1764143778839,0.5512,2943.9,2943.5,3.39831612]
[1764143779170,0.5512,2943.9,2943.8,0.4725]
[1764143779171,0.002,2943.9,2943.8,0.4725]
[1764143779687,0.4954,2943.9,2943.8,3.3969699]
[1764143779835,0.9802,2943.9,2943.8,3.3969699]
[1764143780742,0.4954,2943.9,2943.8,3.3969699]
[1764143781554,0.4954,2943.9,2943.6,6.7944014]
[1764143781845,0.4868,2943.9,2943.6,6.7944014]
[1764143783973,0.4934,2943.7,2943.6,3.3972007]
[1764143784952,0.9782,2943.7,2943.6,3.3972007]
[1764143785345,0.002,2943.9,2943.6,7.2669014]
[1764143785569,0.002,2943.9,2943.8,0.4725]
[1764143785796,0.002,2943.9,2943.8,1.1799]
[1764143785999,0.002,2943.9,2943.8,5.30246401]
[1764143786601,0.002,2943.9,2943.8,5.3364337]
[1764143787179,0.002,2943.9,2943.8,5.30246401]
[1764143791788,0.002,2943.9,2943.8,4.81006401]
[1764143792180,0.002,2943.9,2943.8,5.30246401]
[1764143793114,0.002,2943.9,2943.8,9.11246401]
[1764143796930,0.002,2943.9,2943.8,8.62006401]
[1764143797084,0.4954,2943.9,2943.8,7.93256401]
[1764143797293,0.9802,2943.9,2943.8,7.93256401]
[1764143797534,0.9802,2943.9,2943.8,7.2069699]
[1764143800033,0.4954,2943.9,2943.8,7.2069699]
[1764143800207,0.5512,2943.9,2943.8,7.2069699]
[1764143800528,1.036,2943.9,2943.8,7.2069699]
[1764143800723,0.5512,2943.9,2943.8,7.2069699]
[1764143800941,0.4954,2943.9,2943.8,7.2069699]
[1764143801438,0.9802,2943.9,2943.8,7.2069699]
[1764143801638,1.036,2943.9,2943.8,7.2069699]
[1764143803215,0.002,2943.9,2943.8,7.2069699]
[1764143803414,0.002,2943.9,2943.8,7.6794699]
[1764143803845,0.002,2943.9,2943.8,8.1718699]
[1764143804137,0.002,2943.9,2943.8,7.6794699]
[1764143805938,0.002,2943.9,2943.8,10.71643514]
[1764143806138,0.002,2943.9,2943.8,11.65702925]
[1764143808345,0.002,2943.9,2943.8,8.62006401]
[1764143809043,0.002,2943.9,2943.8,9.07586401]
[1764143811323,0.002,2943.9,2943.8,11.65702925]
[1764143818452,1.1354,2943.9,2943.8,3.81]
[1764143818661,1.1354,2943.9,2943.8,7.2069699]
[1764143821052,0.002,2943.9,2943.8,7.2069699]
[1764143821232,0.002,2943.9,2943.8,7.6760699]
[1764143821784,0.002,2943.9,2943.8,9.26296801]
[1764143821963,0.002,2944.1,2944.0,4.53359411]
[1764143822267,0.002,2944.1,2944.0,7.79885935]
[1764143822431,0.002,2944.1,2944.0,8.29465935]
[1764143822633,0.002,2944.1,2944.0,9.11023324]
[1764143823874,0.002,2944.1,2944.0,8.61443324]
[1764143824280,0.002,2944.1,2944.0,9.11023324]
[1764143829665,0.002,2944.1,2944.0,9.2463027]
[1764143830351,0.002,2944.1,2944.0,9.6518067]
[1764143831585,0.002,2944.5,2944.4,3.802]
[1764143831791,0.002,2944.5,2944.4,5.24795688]
[1764143831992,0.002,2944.5,2944.4,5.74375688]
[1764143832381,0.002,2944.5,2944.4,9.14003455]
[1764143832582,0.002,2944.5,2944.4,9.10607178]
[1764143832795,0.002,2944.5,2944.4,9.24213383]
[1764143836675,0.002,2944.5,2944.4,9.21163383]
[1764143837507,0.002,2945.1,2944.6,0.72559411]
[1764143837697,0.002,2945.1,2944.6,1.23495458]
[1764143838098,0.002,2945.1,2944.6,1.83630923]
[1764143838494,0.4552,2945.1,2944.6,1.37100923]
[1764143838688,0.4532,2945.0,2944.6,1.33704876]
[1764143840016,0.4532,2945.0,2944.6,4.73309576]
[1764143840191,0.4532,2945.0,2944.6,4.76705623]
[1764143843419,0.4532,2945.0,2944.6,8.56705623]
[1764143843616,0.4532,2945.0,2944.6,8.53309576]
[1764143844522,0.4532,2945.0,2944.6,11.17817026]
[1764143844697,0.464,2944.7,2944.6,11.17817026]
[1764143845013,0.464,2944.7,2944.6,10.70277026]
[1764143845218,0.002,2944.7,2944.6,10.70277026]
[1764143846021,0.464,2944.7,2944.6,10.70277026]
[1764143847720,0.002,2944.7,2944.6,11.17817026]
[1764143848511,0.464,2944.7,2944.6,10.70277026]
[1764143849011,0.002,2944.7,2944.6,11.17817026]
[1764143850293,0.002,2944.7,2944.6,10.70277026]
[1764143850698,0.464,2944.7,2944.6,10.70277026]
[1764143851194,0.002,2944.7,2944.6,10.70277026]
[1764143853013,0.002,2944.7,2944.6,11.17817026]
[1764143853210,0.002,2944.7,2944.6,11.64347026]
[1764143853446,0.002,2945.1,2944.6,17.68459176]
[1764143853744,0.002,2945.1,2944.7,4.37059098]
[1764143854043,0.002,2945.1,2945.0,4.52359411]
[1764143854210,0.002,2945.1,2945.0,7.20539896]
[1764143854405,0.002,2945.1,2945.0,7.17144311]
[1764143855019,0.002,2945.1,2945.0,7.30746722]
[1764143855812,0.002,2945.1,2945.0,10.70305295]
[1764143856542,0.002,2945.1,2945.0,7.59267845]
[1764143857715,0.002,2945.1,2945.0,8.05797845]
[1764143857913,0.002,2945.1,2945.0,10.70305295]
[1764143858340,0.002,2945.1,2945.0,8.05797845]
[1764143859544,0.002,2945.1,2945.0,7.59267845]
[1764143860349,0.464,2945.1,2945.0,4.47220395]
[1764143860645,0.464,2945.1,2945.0,7.11727845]
[1764143861251,0.002,2945.1,2945.0,10.70305295]
[1764143862178,0.002,2945.1,2945.0,11.10855695]
[1764143864961,0.002,2945.1,2945.0,7.11727845]
[1764143864962,0.9653,2945.1,2945.0,7.11727845]
[1764143865148,0.4667,2945.1,2945.0,7.11727845]
[1764143865456,0.002,2945.1,2945.0,7.60047845]
[1764143866251,0.002,2945.1,2945.0,10.24555295]
[1764143866620,0.002,2945.1,2945.0,10.74475295]
[1764143867754,0.002,2945.1,2945.0,7.60047845]
[1764143867942,0.002,2945.1,2945.0,10.24555295]
[1764143868150,0.002,2945.1,2945.0,10.74475295]
[1764143869038,0.002,2945.1,2945.0,11.15025695]
[1764143870234,0.002,2945.1,2945.0,8.00598245]
[1764143871155,0.002,2945.1,2945.0,10.65105695]
[1764143872058,0.002,2945.1,2945.0,8.00598245]
[1764143872260,0.002,2945.1,2945.0,10.65105695]
[1764143873139,0.002,2945.1,2945.0,9.52718695]
[1764143873338,0.002,2945.1,2945.0,10.02778695]
[1764143874173,0.002,2945.1,2945.0,7.38271245]
[1764143874550,0.002,2945.1,2945.0,10.02778695]
[1764143875174,0.002,2945.1,2945.0,10.75338106]
[1764143875469,0.002,2945.1,2945.0,11.25258106]
[1764143876968,0.002,2945.1,2945.0,7.70280256]
[1764143877368,0.4667,2945.1,2945.0,7.21960256]
[1764143877575,0.002,2945.1,2945.0,10.75338106]
[1764143877870,0.002,2945.1,2945.0,11.35258106]
[1764143878270,0.002,2945.3,2945.0,14.74816679]
[1764143878571,0.002,2945.3,2945.2,6.71462965]
[1764143878970,0.002,2945.7,2945.5,3.794]
[1764143879139,0.5006,2945.7,2945.6,6.4390745]
[1764143879467,0.5006,2945.7,2945.6,6.9396745]
[1764143879636,0.9653,2945.7,2945.6,6.9396745]
[1764143880359,0.002,2945.7,2945.6,6.9396745]
[1764143880552,0.002,2945.7,2945.6,11.54336268]
[1764143880759,0.1994,2946.6,2945.7,0.72559411]
[1764143880978,0.1994,2946.6,2946.5,2.6450745]
[1764143881189,0.1994,2946.6,2946.5,6.6540745]
[1764143881370,0.6641,2946.6,2946.5,6.6540745]
[1764143881697,1.0764,2946.6,2946.5,3.794]
[1764143882654,1.39439979,2946.6,2946.5,3.794]
[1764143890182,1.39639979,2946.6,2946.5,3.794]
[1764143890919,1.39639979,2946.6,2946.2,3.39417154]
[1764143890920,1.39639979,2946.6,2946.3,3.794]
[1764143891070,0.4534,2946.5,2946.3,3.794]
[1764143891380,0.4234,2946.4,2946.3,3.794]
[1764143891803,0.8765,2946.4,2946.3,3.794]
[1764143891999,0.8765,2946.4,2946.3,7.18808749]
[1764143892774,0.8765,2946.4,2946.3,8.06458749]
[1764143895282,0.4234,2946.4,2946.3,8.06458749]
[1764143895973,0.4,2946.4,2946.3,10.70966199]
[1764143896168,0.002,2946.6,2946.3,14.59584948]
[1764143896369,0.002,2946.6,2946.5,2.6450745]
[1764143896576,0.4163,2946.4,2946.3,10.70966199]
[1764143896882,0.4163,2946.4,2946.3,7.40308749]
[1764143897077,0.8927,2946.4,2946.3,7.88208749]
[1764143899307,0.4163,2946.4,2946.3,10.52716199]
[1764143900406,0.4784,2946.6,2946.3,13.92124948]
[1764143900609,0.4784,2946.6,2946.3,11.27617498]
[1764143901109,0.4784,2946.6,2946.3,10.79717498]
[1764143901310,0.4784,2946.6,2946.5,3.39385711]
[1764143901695,0.002,2946.6,2946.5,3.88595711]
[1764143902208,0.002,2946.6,2946.5,4.36295711]
[1764143902511,0.4183,2946.6,2946.5,3.87085711]
[1764143902678,0.4183,2946.6,2946.5,0.477]
[1764143902879,0.8947,2946.6,2946.5,0.477]
[1764143903609,0.8947,2946.6,2946.5,3.87085711]
[1764143903774,0.4183,2946.6,2946.5,3.87085711]
[1764143904211,0.002,2946.6,2946.5,4.81795711]
[1764143904794,0.002,2946.6,2946.5,4.36295711]
[1764143905405,0.002,2946.6,2946.5,4.81795711]
[1764143905606,0.002,2946.6,2946.5,4.36295711]
[1764143908312,0.002,2946.6,2946.5,5.54355122]
[1764143909819,0.002,2946.6,2946.5,5.30355122]
[1764143910221,0.002,2946.6,2946.5,5.75855122]
[1764143912623,0.002,2946.6,2946.5,5.79248979]
[1764143913825,0.002,2947.2,2946.5,5.79248979]